[Event "*** Titled Tuesday Blitz"]
[Site "Chess.com"]
[Date "2020.10.27"]
[Round "1"]
[White "capatl"]
[Black "Azerichess"]
[Result "0-1"]
[WhiteElo "2487"]
[BlackElo "2991"]
[TimeControl "180+1"]
[EndTime "10:07:13 PDT"]
[Termination "Azerichess won by resignation"]

1. c4 {[%clk 0:03:00.8]} 1... e5 {[%clk 0:02:58.9]} 2. Nc3 {[%clk 0:02:59.4]}
2... Nf6 {[%clk 0:02:59.5]} 3. g3 {[%clk 0:02:57.8]} 3... Bb4 {[%clk 0:02:57.1]}
4. Qc2 {[%clk 0:02:47.7]} 4... O-O {[%clk 0:02:54.4]} 5. Bg2 {[%clk 0:02:47.5]}
5... c6 {[%clk 0:02:53.4]} 6. a3 {[%clk 0:02:41.2]} 6... Ba5 {[%clk 0:02:41.6]}
7. b4 {[%clk 0:02:39.7]} 7... Bb6 {[%clk 0:02:41.3]} 8. Nf3 {[%clk 0:02:27.7]}
8... Re8 {[%clk 0:02:41.4]} 9. c5 {[%clk 0:02:21.4]} 9... Bc7 {[%clk 0:02:40.8]}
10. Bb2 {[%clk 0:02:17.3]} 10... d5 {[%clk 0:02:31.2]} 11. cxd6 {[%clk
0:02:15.2]} 11... Qxd6 {[%clk 0:02:29]} 12. O-O {[%clk 0:02:10.3]} 12... h6
{[%clk 0:02:26.2]} 13. d3 {[%clk 0:01:53.1]} 13... Bf5 {[%clk 0:02:25.2]} 14.
Rad1 {[%clk 0:01:49]} 14... Nbd7 {[%clk 0:02:23.1]} 15. b5 {[%clk 0:01:43.2]}
15... Rac8 {[%clk 0:02:07.2]} 16. bxc6 {[%clk 0:01:38.1]} 16... bxc6 {[%clk
0:02:08.1]} 17. Nd2 {[%clk 0:01:38.4]} 17... Nb6 {[%clk 0:01:59.6]} 18. Nce4
{[%clk 0:01:34.3]} 18... Nxe4 {[%clk 0:01:57.7]} 19. Nxe4 {[%clk 0:01:35.2]}
19... Qg6 {[%clk 0:01:54.1]} 20. Rc1 {[%clk 0:01:30.5]} 20... Bb8 {[%clk
0:01:54]} 21. Qc5 {[%clk 0:01:24.6]} 21... Red8 {[%clk 0:01:49.7]} 22. Qa5
{[%clk 0:01:20.3]} 22... h5 {[%clk 0:01:44.4]} 23. Rc5 {[%clk 0:01:15.1]} 23...
Nd7 {[%clk 0:01:36.3]} 24. Rc2 {[%clk 0:01:04.9]} 24... h4 {[%clk 0:01:36.8]}
25. Rfc1 {[%clk 0:01:04.1]} 25... h3 {[%clk 0:01:35.4]} 26. Bh1 {[%clk
0:01:00.9]} 26... Nb6 {[%clk 0:01:28.7]} 27. Rc5 {[%clk 0:00:57.5]} 27... Rd5
{[%clk 0:01:21.3]} 28. Nd2 {[%clk 0:00:46.4]} 28... Rxc5 {[%clk 0:01:17.8]} 29.
Rxc5 {[%clk 0:00:47.3]} 29... Bg4 {[%clk 0:01:13.3]} 30. Bf3 {[%clk 0:00:45.5]}
30... Nd7 {[%clk 0:00:58.7]} 31. Rc4 {[%clk 0:00:42.6]} 31... Bxf3 {[%clk
0:00:54.2]} 32. Nxf3 {[%clk 0:00:43.5]} 32... Qe6 {[%clk 0:00:53.6]} 33. Qa6
{[%clk 0:00:38]} 33... Nb6 {[%clk 0:00:51.6]} 34. Ng5 {[%clk 0:00:26.6]} 34...
Qd5 {[%clk 0:00:49.3]} 35. Re4 {[%clk 0:00:25.1]} 35... Qb3 {[%clk 0:00:49.1]}
36. f4 {[%clk 0:00:20.1]} 36... Qxb2 {[%clk 0:00:47.2]} 37. Qb7 {[%clk
0:00:20.1]} 37... Bc7 {[%clk 0:00:35.8]} 38. fxe5 {[%clk 0:00:19.4]} 38... Qc1+
{[%clk 0:00:34.4]} 39. Kf2 {[%clk 0:00:19.5]} 39... Qxg5 {[%clk 0:00:34.6]} 40.
Qxc6 {[%clk 0:00:20]} 40... Qf5+ {[%clk 0:00:31.6]} 41. Rf4 {[%clk 0:00:19.8]}
41... Qxe5 {[%clk 0:00:30.4]} 42. Qb7 {[%clk 0:00:20.7]} 42... Re8 {[%clk
0:00:27.5]} 43. Re4 {[%clk 0:00:20.6]} 43... Qf6+ {[%clk 0:00:27.5]} 44. Ke3
{[%clk 0:00:20.9]} 44... Rxe4+ {[%clk 0:00:26.5]} 45. Qxe4 {[%clk 0:00:21.8]}
45... Qe5 {[%clk 0:00:25.2]} 46. Qxe5 {[%clk 0:00:21.5]} 46... Bxe5 {[%clk
0:00:26.1]} 47. d4 {[%clk 0:00:22.1]} 47... Bxg3 {[%clk 0:00:26.5]} 48. Kd3
{[%clk 0:00:23]} 48... Bxh2 {[%clk 0:00:26.5]} 0-1

[Event "*** Titled Tuesday Blitz"]
[Site "Chess.com"]
[Date "2020.10.27"]
[Round "1"]
[White "Vanina1989"]
[Black "kai_nov"]
[Result "1-0"]
[WhiteElo "2641"]
[BlackElo "2292"]
[TimeControl "180+1"]
[EndTime "10:07:13 PDT"]
[Termination "Vanina1989 won on time"]

1. e4 {[%clk 0:03:00.9]} 1... c5 {[%clk 0:02:57.6]} 2. Nf3 {[%clk 0:03:00.7]}
2... Nc6 {[%clk 0:02:57.3]} 3. Bb5 {[%clk 0:03:00.1]} 3... e6 {[%clk 0:02:56.3]}
4. O-O {[%clk 0:02:57.9]} 4... Nge7 {[%clk 0:02:55.2]} 5. Re1 {[%clk 0:02:58]}
5... a6 {[%clk 0:02:50.5]} 6. Bf1 {[%clk 0:02:58.1]} 6... d5 {[%clk 0:02:43.5]}
7. Nc3 {[%clk 0:02:56.6]} 7... d4 {[%clk 0:02:35.9]} 8. Ne2 {[%clk 0:02:56.9]}
8... Ng6 {[%clk 0:02:33]} 9. d3 {[%clk 0:02:53.2]} 9... Be7 {[%clk 0:02:27.2]}
10. Ng3 {[%clk 0:02:51.6]} 10... O-O {[%clk 0:02:23.6]} 11. c3 {[%clk
0:02:43.7]} 11... dxc3 {[%clk 0:02:14.2]} 12. bxc3 {[%clk 0:02:43.5]} 12... e5
{[%clk 0:02:14.6]} 13. Nf5 {[%clk 0:02:32.7]} 13... Be6 {[%clk 0:02:07.3]} 14.
Nxe7+ {[%clk 0:02:28.4]} 14... Qxe7 {[%clk 0:02:07.1]} 15. Ng5 {[%clk
0:02:28.7]} 15... h6 {[%clk 0:02:02.5]} 16. Nxe6 {[%clk 0:02:25.9]} 16... Qxe6
{[%clk 0:01:54.9]} 17. Be3 {[%clk 0:02:25.5]} 17... Qe7 {[%clk 0:01:46.1]} 18.
Qb3 {[%clk 0:02:21.3]} 18... b5 {[%clk 0:01:45.6]} 19. Qd5 {[%clk 0:02:19.4]}
19... Rfc8 {[%clk 0:01:18]} 20. Qxc5 {[%clk 0:02:12.5]} 20... Qf6 {[%clk
0:01:11.5]} 21. Qa3 {[%clk 0:02:10.3]} 21... Rd8 {[%clk 0:01:00.3]} 22. Rad1
{[%clk 0:02:09.6]} 22... Nf4 {[%clk 0:00:50]} 23. d4 {[%clk 0:02:08]} 23... exd4
{[%clk 0:00:44.6]} 24. cxd4 {[%clk 0:02:07.7]} 24... Nxd4 {[%clk 0:00:40.4]} 25.
e5 {[%clk 0:02:04.3]} 25... Nh3+ {[%clk 0:00:17.3]} 26. Kh1 {[%clk 0:01:28.4]}
26... Nxf2+ {[%clk 0:00:16.5]} 27. Kg1 {[%clk 0:01:08.9]} 27... Nh3+ {[%clk
0:00:16.5]} 28. gxh3 {[%clk 0:01:04.9]} 28... Qg6+ {[%clk 0:00:15.4]} 29. Kh1
{[%clk 0:00:58.7]} 29... Nf3 {[%clk 0:00:15.5]} 30. Bg2 {[%clk 0:00:58.1]} 30...
Nxe1 {[%clk 0:00:13.7]} 31. Rxe1 {[%clk 0:00:58.3]} 31... Qc2 {[%clk 0:00:12.4]}
32. Bxa8 {[%clk 0:00:51.2]} 32... Rxa8 {[%clk 0:00:10.6]} 33. Bc5 {[%clk
0:00:47.8]} 33... Rd8 {[%clk 0:00:08]} 34. Bd6 {[%clk 0:00:47.8]} 34... Qf2
{[%clk 0:00:04.4]} 35. Qg3 {[%clk 0:00:45.4]} 35... Qxa2 {[%clk 0:00:03]} 36.
Qf3 {[%clk 0:00:41.8]} 36... Rc8 {[%clk 0:00:02.1]} 37. e6 {[%clk 0:00:26.4]}
37... fxe6 {[%clk 0:00:01.3]} 38. Rg1 {[%clk 0:00:25.8]} 1-0

[Event "*** Titled Tuesday Blitz"]
[Site "Chess.com"]
[Date "2020.10.27"]
[Round "1"]
[White "Witik"]
[Black "PlotnikovPavel"]
[Result "0-1"]
[WhiteElo "2694"]
[BlackElo "2375"]
[TimeControl "180+1"]
[EndTime "10:07:16 PDT"]
[Termination "PlotnikovPavel won on time"]

1. d4 {[%clk 0:02:58.1]} 1... Nf6 {[%clk 0:02:58]} 2. Bf4 {[%clk 0:02:57.5]}
2... g6 {[%clk 0:02:55.5]} 3. Nf3 {[%clk 0:02:56.4]} 3... Bg7 {[%clk 0:02:54.7]}
4. Nc3 {[%clk 0:02:56.8]} 4... d5 {[%clk 0:02:53.4]} 5. e3 {[%clk 0:02:56.7]}
5... O-O {[%clk 0:02:52.7]} 6. Be2 {[%clk 0:02:56.1]} 6... b6 {[%clk 0:02:48.6]}
7. Ne5 {[%clk 0:02:55.2]} 7... Bb7 {[%clk 0:02:47.2]} 8. h4 {[%clk 0:02:55.2]}
8... h6 {[%clk 0:02:31]} 9. g4 {[%clk 0:02:48.6]} 9... Nfd7 {[%clk 0:02:22.9]}
10. Nf3 {[%clk 0:02:35.3]} 10... Re8 {[%clk 0:01:56.5]} 11. Qd2 {[%clk
0:02:29.6]} 11... Nc6 {[%clk 0:01:09.7]} 12. O-O-O {[%clk 0:02:26.1]} 12... Na5
{[%clk 0:01:03.6]} 13. Nb5 {[%clk 0:01:39.1]} 13... e5 {[%clk 0:00:27.9]} 14.
dxe5 {[%clk 0:01:38]} 14... Nc5 {[%clk 0:00:22.2]} 15. Qe1 {[%clk 0:01:01]}
15... a6 {[%clk 0:00:16.7]} 16. Nbd4 {[%clk 0:01:00]} 16... Ne4 {[%clk
0:00:10.6]} 17. g5 {[%clk 0:00:54.2]} 17... h5 {[%clk 0:00:10.1]} 18. e6 {[%clk
0:00:52.3]} 18... fxe6 {[%clk 0:00:08.8]} 19. Ne5 {[%clk 0:00:52]} 19... Bxe5
{[%clk 0:00:06.4]} 20. Bxe5 {[%clk 0:00:51.8]} 20... Qe7 {[%clk 0:00:04.4]} 21.
f3 {[%clk 0:00:45]} 21... Nd6 {[%clk 0:00:03.2]} 22. Bd3 {[%clk 0:00:41.5]}
22... Nf5 {[%clk 0:00:02.4]} 23. Bf6 {[%clk 0:00:33.5]} 23... Qf7 {[%clk
0:00:02.3]} 24. Qc3 {[%clk 0:00:26.3]} 24... c5 {[%clk 0:00:01]} 25. Nxf5 {[%clk
0:00:22.8]} 25... exf5 {[%clk 0:00:01.5]} 26. Rhe1 {[%clk 0:00:15.4]} 26... Re6
{[%clk 0:00:01.2]} 27. b3 {[%clk 0:00:11.8]} 27... Rae8 {[%clk 0:00:01.2]} 28.
Bf1 {[%clk 0:00:10.2]} 28... Nc6 {[%clk 0:00:01.6]} 29. Rxd5 {[%clk 0:00:08.8]}
29... Nb4 {[%clk 0:00:02.2]} 0-1

[Event "*** Titled Tuesday Blitz"]
[Site "Chess.com"]
[Date "2020.10.27"]
[Round "1"]
[White "Jumbo"]
[Black "dennisodessa"]
[Result "1-0"]
[WhiteElo "2846"]
[BlackElo "2442"]
[TimeControl "180+1"]
[EndTime "10:07:17 PDT"]
[Termination "Jumbo won by resignation"]

1. d4 {[%clk 0:03:00.9]} 1... Nf6 {[%clk 0:02:57]} 2. Nf3 {[%clk 0:03:00.6]}
2... e6 {[%clk 0:02:56.9]} 3. c4 {[%clk 0:03:00.9]} 3... Bb4+ {[%clk 0:02:56.5]}
4. Bd2 {[%clk 0:03:00.2]} 4... a5 {[%clk 0:02:56.4]} 5. g3 {[%clk 0:02:59.9]}
5... b6 {[%clk 0:02:56.2]} 6. Bg2 {[%clk 0:02:59.2]} 6... Bb7 {[%clk 0:02:56.8]}
7. O-O {[%clk 0:02:58]} 7... O-O {[%clk 0:02:57.3]} 8. Bf4 {[%clk 0:02:58.5]}
8... Be7 {[%clk 0:02:56.7]} 9. Qd3 {[%clk 0:02:54.5]} 9... Ne4 {[%clk
0:02:44.7]} 10. Nfd2 {[%clk 0:02:35.7]} 10... Nxd2 {[%clk 0:02:22.2]} 11. Bxb7
{[%clk 0:02:35.2]} 11... Ra7 {[%clk 0:02:22.2]} 12. Qxd2 {[%clk 0:02:28.5]}
12... Rxb7 {[%clk 0:02:22.1]} 13. Nc3 {[%clk 0:02:28.9]} 13... d6 {[%clk
0:02:18.7]} 14. e4 {[%clk 0:02:27.2]} 14... Nd7 {[%clk 0:02:17.7]} 15. a3 {[%clk
0:02:16.8]} 15... c6 {[%clk 0:02:11.3]} 16. b4 {[%clk 0:02:06.9]} 16... Qc7
{[%clk 0:02:06.4]} 17. Rac1 {[%clk 0:02:03.1]} 17... e5 {[%clk 0:01:52.9]} 18.
Be3 {[%clk 0:02:02.4]} 18... Bf6 {[%clk 0:01:46.2]} 19. d5 {[%clk 0:01:50.7]}
19... c5 {[%clk 0:01:44.5]} 20. Nb5 {[%clk 0:01:50.3]} 20... Qb8 {[%clk
0:01:44.3]} 21. bxa5 {[%clk 0:01:50.9]} 21... bxa5 {[%clk 0:01:44.7]} 22. Qxa5
{[%clk 0:01:51.5]} 22... Bd8 {[%clk 0:01:39.9]} 23. Qc3 {[%clk 0:01:46.9]} 23...
Nb6 {[%clk 0:01:34]} 24. Rb1 {[%clk 0:01:46.6]} 24... f5 {[%clk 0:01:07.7]} 25.
exf5 {[%clk 0:01:45.6]} 25... Rxf5 {[%clk 0:01:08.2]} 26. Qd3 {[%clk 0:01:44.3]}
26... Rf8 {[%clk 0:01:06.3]} 27. Rb3 {[%clk 0:01:43.7]} 27... Bf6 {[%clk
0:00:57.9]} 28. Rfb1 {[%clk 0:01:43.7]} 28... Bd8 {[%clk 0:00:58.1]} 29. Qe4
{[%clk 0:01:33.1]} 29... Kh8 {[%clk 0:00:47.9]} 30. Qc2 {[%clk 0:01:26.6]} 30...
Nc8 {[%clk 0:00:37.6]} 31. a4 {[%clk 0:01:23]} 31... Ba5 {[%clk 0:00:37.1]} 32.
Nc3 {[%clk 0:01:17]} 32... Rb4 {[%clk 0:00:32.5]} 33. Ne4 {[%clk 0:01:14.8]}
33... Nb6 {[%clk 0:00:29.8]} 34. Bd2 {[%clk 0:01:12.7]} 34... Rxb3 {[%clk
0:00:19.6]} 35. Qxb3 {[%clk 0:01:12.1]} 35... Bxd2 {[%clk 0:00:17.5]} 36. Nxd2
{[%clk 0:01:13]} 36... Nd7 {[%clk 0:00:17.8]} 37. Qxb8 {[%clk 0:01:13.4]} 37...
Nxb8 {[%clk 0:00:17.1]} 38. Ne4 {[%clk 0:01:07.8]} 38... Na6 {[%clk 0:00:17.2]}
39. Nxd6 {[%clk 0:01:06.2]} 39... Nb4 {[%clk 0:00:18]} 40. Ne4 {[%clk
0:01:06.7]} 40... Nd3 {[%clk 0:00:15.9]} 41. a5 {[%clk 0:01:00.7]} 41... Ra8
{[%clk 0:00:14.7]} 42. Rb5 {[%clk 0:00:59.6]} 42... h6 {[%clk 0:00:14.3]} 43.
Nxc5 {[%clk 0:01:00]} 43... Nxc5 {[%clk 0:00:12.7]} 44. Rxc5 {[%clk 0:00:59.6]}
44... e4 {[%clk 0:00:13.6]} 45. d6 {[%clk 0:00:59.7]} 45... Rb8 {[%clk
0:00:14.2]} 46. Rd5 {[%clk 0:00:59.9]} 46... Rb1+ {[%clk 0:00:13.9]} 47. Kg2
{[%clk 0:01:00.4]} 47... Rb2 {[%clk 0:00:14.6]} 48. Kf1 {[%clk 0:01:01]} 48...
Rb1+ {[%clk 0:00:12.5]} 49. Ke2 {[%clk 0:01:01.5]} 49... Rb2+ {[%clk 0:00:13.1]}
50. Rd2 {[%clk 0:01:01.6]} 50... Rb3 {[%clk 0:00:13.7]} 51. d7 {[%clk
0:01:01.4]} 51... Rb8 {[%clk 0:00:14.3]} 52. d8=Q+ {[%clk 0:01:01.6]} 52... Rxd8
{[%clk 0:00:14.4]} 53. Rxd8+ {[%clk 0:01:02.5]} 53... Kh7 {[%clk 0:00:15.1]} 54.
a6 {[%clk 0:01:02.9]} 1-0

[Event "*** Titled Tuesday Blitz"]
[Site "Chess.com"]
[Date "2020.10.27"]
[Round "1"]
[White "witcher8"]
[Black "avantage_ru"]
[Result "0-1"]
[WhiteElo "2434"]
[BlackElo "2833"]
[TimeControl "180+1"]
[EndTime "10:07:18 PDT"]
[Termination "avantage_ru won on time"]

1. e4 {[%clk 0:02:58.7]} 1... Nf6 {[%clk 0:02:58.4]} 2. e5 {[%clk 0:02:58.5]}
2... Ne4 {[%clk 0:02:58.3]} 3. d4 {[%clk 0:02:59.4]} 3... e6 {[%clk 0:02:57.7]}
4. Bd3 {[%clk 0:02:56.6]} 4... d5 {[%clk 0:02:57.2]} 5. exd6 {[%clk 0:02:56]}
5... Nxd6 {[%clk 0:02:56.5]} 6. Nf3 {[%clk 0:02:56.3]} 6... Nd7 {[%clk
0:02:56.3]} 7. c4 {[%clk 0:02:37.5]} 7... c5 {[%clk 0:02:52.2]} 8. d5 {[%clk
0:02:37.3]} 8... exd5 {[%clk 0:02:50.7]} 9. cxd5 {[%clk 0:02:38.2]} 9... Be7
{[%clk 0:02:49.1]} 10. O-O {[%clk 0:02:38.2]} 10... O-O {[%clk 0:02:49.3]} 11.
Nc3 {[%clk 0:02:38.6]} 11... Bf6 {[%clk 0:02:47.5]} 12. Bf4 {[%clk 0:02:38.7]}
12... Nb6 {[%clk 0:02:40.9]} 13. Qc2 {[%clk 0:02:30.2]} 13... g6 {[%clk
0:02:24.5]} 14. Be5 {[%clk 0:02:26.7]} 14... Bg4 {[%clk 0:02:18.8]} 15. Bxf6
{[%clk 0:02:13.4]} 15... Qxf6 {[%clk 0:02:19.7]} 16. Nd2 {[%clk 0:02:13.8]}
16... c4 {[%clk 0:02:11]} 17. Be2 {[%clk 0:02:04.3]} 17... Bxe2 {[%clk
0:02:06.7]} 18. Nxe2 {[%clk 0:02:05.2]} 18... Nxd5 {[%clk 0:01:58]} 19. Rad1
{[%clk 0:02:03.3]} 19... Nb4 {[%clk 0:01:50.7]} 20. Qa4 {[%clk 0:02:02]} 20...
Nd3 {[%clk 0:01:45.1]} 21. Nxc4 {[%clk 0:01:40.2]} 21... b5 {[%clk 0:01:44.1]}
22. Qa6 {[%clk 0:01:05.5]} 22... bxc4 {[%clk 0:01:41.7]} 23. b3 {[%clk
0:01:06.2]} 23... Ne4 {[%clk 0:01:38.3]} 24. Qxf6 {[%clk 0:01:04.7]} 24... Nxf6
{[%clk 0:01:37.7]} 25. bxc4 {[%clk 0:01:05.6]} 25... Rfe8 {[%clk 0:01:32.9]} 26.
Ng3 {[%clk 0:00:59.8]} 26... Nc5 {[%clk 0:01:28.3]} 27. Rd6 {[%clk 0:00:54.7]}
27... Kg7 {[%clk 0:01:21.5]} 28. Rfd1 {[%clk 0:00:51.7]} 28... Rac8 {[%clk
0:01:17.6]} 29. h4 {[%clk 0:00:51.4]} 29... Nfe4 {[%clk 0:01:11.2]} 30. Nxe4
{[%clk 0:00:47.1]} 30... Nxe4 {[%clk 0:01:11.3]} 31. Ra6 {[%clk 0:00:46.2]}
31... Re7 {[%clk 0:01:09.3]} 32. Rd4 {[%clk 0:00:40.7]} 32... Nc5 {[%clk
0:01:04.5]} 33. Ra5 {[%clk 0:00:29.9]} 33... Rec7 {[%clk 0:01:04.1]} 34. f3
{[%clk 0:00:18.9]} 34... Ne6 {[%clk 0:01:02.2]} 35. Rd6 {[%clk 0:00:13.4]} 35...
Rxc4 {[%clk 0:01:00.7]} 36. Rxa7 {[%clk 0:00:05.3]} 36... R8c7 {[%clk 0:01:00]}
37. Rxc7 {[%clk 0:00:04.3]} 37... Nxc7 {[%clk 0:00:59.3]} 38. h5 {[%clk
0:00:04.3]} 38... gxh5 {[%clk 0:00:56.9]} 39. Rd7 {[%clk 0:00:03.5]} 39... Ne6
{[%clk 0:00:51.7]} 40. Ra7 {[%clk 0:00:02.5]} 40... Rc2 {[%clk 0:00:50.6]} 41.
g3 {[%clk 0:00:01.1]} 41... Nd4 {[%clk 0:00:48.6]} 42. f4 {[%clk 0:00:01.5]}
42... h4 {[%clk 0:00:43.9]} 43. gxh4 {[%clk 0:00:01.3]} 43... Nf3+ {[%clk
0:00:43.5]} 44. Kf1 {[%clk 0:00:01.3]} 44... Nxh4 {[%clk 0:00:43.7]} 45. a4
{[%clk 0:00:01.6]} 45... Ng2 {[%clk 0:00:41.7]} 0-1

[Event "*** Titled Tuesday Blitz"]
[Site "Chess.com"]
[Date "2020.10.27"]
[Round "1"]
[White "Omk124"]
[Black "GukeshDommaraju"]
[Result "0-1"]
[WhiteElo "2429"]
[BlackElo "2820"]
[TimeControl "180+1"]
[EndTime "10:07:18 PDT"]
[Termination "GukeshDommaraju won by resignation"]

1. e4 {[%clk 0:03:00.9]} 1... c6 {[%clk 0:03:00]} 2. c4 {[%clk 0:02:59.4]} 2...
e5 {[%clk 0:02:57.3]} 3. Nf3 {[%clk 0:02:58.1]} 3... d6 {[%clk 0:02:57.5]} 4.
Nc3 {[%clk 0:02:58.2]} 4... Nf6 {[%clk 0:02:57.2]} 5. Be2 {[%clk 0:02:54.9]}
5... g6 {[%clk 0:02:56.8]} 6. d4 {[%clk 0:02:54.1]} 6... Nbd7 {[%clk 0:02:56.2]}
7. O-O {[%clk 0:02:53.9]} 7... Bg7 {[%clk 0:02:56.1]} 8. b3 {[%clk 0:02:47.2]}
8... O-O {[%clk 0:02:55]} 9. dxe5 {[%clk 0:02:47.5]} 9... dxe5 {[%clk
0:02:54.1]} 10. Ba3 {[%clk 0:02:47.6]} 10... Re8 {[%clk 0:02:54.5]} 11. Qc2
{[%clk 0:02:46]} 11... Bf8 {[%clk 0:02:48.9]} 12. Bxf8 {[%clk 0:02:44.5]} 12...
Nxf8 {[%clk 0:02:48.6]} 13. Rad1 {[%clk 0:02:44.9]} 13... Qc7 {[%clk 0:02:48.3]}
14. c5 {[%clk 0:02:40.1]} 14... Bg4 {[%clk 0:02:41.7]} 15. Nd2 {[%clk
0:02:28.9]} 15... Ne6 {[%clk 0:02:41.2]} 16. Bxg4 {[%clk 0:02:24]} 16... Nxg4
{[%clk 0:02:42.1]} 17. b4 {[%clk 0:02:23.9]} 17... a5 {[%clk 0:02:39]} 18. a3
{[%clk 0:02:23.6]} 18... axb4 {[%clk 0:02:39.3]} 19. axb4 {[%clk 0:02:24.5]}
19... Nd4 {[%clk 0:02:39.7]} 20. Qb2 {[%clk 0:02:22.9]} 20... b5 {[%clk
0:02:29.5]} 21. h3 {[%clk 0:02:14.8]} 21... Nf6 {[%clk 0:02:26.5]} 22. Nb3
{[%clk 0:02:15.2]} 22... Rad8 {[%clk 0:02:14.3]} 23. Rfe1 {[%clk 0:02:13.2]}
23... Ne6 {[%clk 0:02:10.6]} 24. Na5 {[%clk 0:02:07.6]} 24... Nf4 {[%clk
0:02:07.4]} 25. Qb3 {[%clk 0:02:02.5]} 25... Qc8 {[%clk 0:02:00]} 26. Rxd8
{[%clk 0:02:00.3]} 26... Rxd8 {[%clk 0:01:59.8]} 27. Rd1 {[%clk 0:02:00.7]}
27... Rd4 {[%clk 0:01:57.8]} 28. Rxd4 {[%clk 0:01:18.5]} 28... exd4 {[%clk
0:01:57.7]} 29. Nd1 {[%clk 0:01:18.7]} 29... d3 {[%clk 0:01:43.2]} 30. Qb2
{[%clk 0:00:59.7]} 30... Ne2+ {[%clk 0:01:07.9]} 31. Kf1 {[%clk 0:00:52.2]}
31... Qe6 {[%clk 0:00:44.2]} 32. f3 {[%clk 0:00:18.7]} 32... Nh5 {[%clk
0:00:37]} 33. Nf2 {[%clk 0:00:18.1]} 33... Nhg3+ {[%clk 0:00:36.5]} 34. Ke1
{[%clk 0:00:18.4]} 34... Qd7 {[%clk 0:00:33.3]} 35. Kd2 {[%clk 0:00:18.7]} 35...
Nf1+ {[%clk 0:00:31.4]} 36. Ke1 {[%clk 0:00:18]} 36... Neg3 {[%clk 0:00:27.1]}
37. Qc3 {[%clk 0:00:14.7]} 37... d2+ {[%clk 0:00:23.5]} 38. Kd1 {[%clk
0:00:15.2]} 38... h5 {[%clk 0:00:19.8]} 39. e5 {[%clk 0:00:15.2]} 39... Qf5
{[%clk 0:00:19.3]} 40. Nxc6 {[%clk 0:00:13.1]} 40... Qb1+ {[%clk 0:00:18.9]} 0-1

[Event "*** Titled Tuesday Blitz"]
[Site "Chess.com"]
[Date "2020.10.27"]
[Round "1"]
[White "MIJuanReyesRosa"]
[Black "lelajavakhishvili"]
[Result "0-1"]
[WhiteElo "2076"]
[BlackElo "2525"]
[TimeControl "180+1"]
[EndTime "10:07:18 PDT"]
[Termination "lelajavakhishvili won on time"]

1. d4 {[%clk 0:02:59.9]} 1... Nf6 {[%clk 0:02:59]} 2. Nf3 {[%clk 0:02:59]} 2...
e6 {[%clk 0:02:59.1]} 3. c4 {[%clk 0:02:59.1]} 3... d5 {[%clk 0:02:57.9]} 4. Nc3
{[%clk 0:02:58.5]} 4... Bb4 {[%clk 0:02:57.3]} 5. cxd5 {[%clk 0:02:53.2]} 5...
exd5 {[%clk 0:02:56.8]} 6. Bg5 {[%clk 0:02:52.5]} 6... h6 {[%clk 0:02:54.2]} 7.
Bxf6 {[%clk 0:02:51.9]} 7... Qxf6 {[%clk 0:02:53.7]} 8. e3 {[%clk 0:02:48.9]}
8... O-O {[%clk 0:02:52.5]} 9. Be2 {[%clk 0:02:43.8]} 9... c6 {[%clk 0:02:42]}
10. O-O {[%clk 0:02:41.5]} 10... Nd7 {[%clk 0:02:41.7]} 11. Qb3 {[%clk 0:02:41]}
11... Bd6 {[%clk 0:02:40.8]} 12. Rac1 {[%clk 0:02:26.7]} 12... Re8 {[%clk
0:02:40.2]} 13. Rfe1 {[%clk 0:02:21.9]} 13... Qg6 {[%clk 0:02:38.4]} 14. a4
{[%clk 0:02:03.9]} 14... Nf6 {[%clk 0:02:37.7]} 15. a5 {[%clk 0:01:59]} 15...
Bh3 {[%clk 0:02:30.8]} 16. Bf1 {[%clk 0:01:54.8]} 16... Rab8 {[%clk 0:02:27.9]}
17. Na4 {[%clk 0:01:48.1]} 17... Ne4 {[%clk 0:02:26.3]} 18. Nc5 {[%clk
0:01:19.3]} 18... Nxc5 {[%clk 0:02:22.3]} 19. dxc5 {[%clk 0:01:18.8]} 19... Bc7
{[%clk 0:02:23.2]} 20. Qc2 {[%clk 0:01:03.7]} 20... Bf5 {[%clk 0:02:21.1]} 21.
Qa4 {[%clk 0:01:00.6]} 21... Be4 {[%clk 0:02:19.9]} 22. Nd2 {[%clk 0:00:50.2]}
22... Qh5 {[%clk 0:02:00.2]} 23. g3 {[%clk 0:00:33.8]} 23... a6 {[%clk
0:01:57.2]} 24. b4 {[%clk 0:00:27]} 24... Re6 {[%clk 0:01:50.6]} 25. Nxe4 {[%clk
0:00:21.2]} 25... Rxe4 {[%clk 0:01:50]} 26. Bg2 {[%clk 0:00:19.1]} 26... Re5
{[%clk 0:01:46.4]} 27. Qc2 {[%clk 0:00:16.8]} 27... Rbe8 {[%clk 0:01:45.6]} 28.
Qe2 {[%clk 0:00:16.3]} 28... Qg6 {[%clk 0:01:37.2]} 29. Qf3 {[%clk 0:00:15.8]}
29... d4 {[%clk 0:01:34.8]} 30. e4 {[%clk 0:00:12.5]} 30... Rd8 {[%clk
0:01:30.7]} 31. Rcd1 {[%clk 0:00:11.2]} 31... Re7 {[%clk 0:01:25.1]} 32. Qd3
{[%clk 0:00:11]} 32... Qe6 {[%clk 0:01:22.2]} 33. f4 {[%clk 0:00:10.4]} 33... g5
{[%clk 0:01:20.6]} 34. e5 {[%clk 0:00:10.3]} 34... gxf4 {[%clk 0:01:11]} 35.
gxf4 {[%clk 0:00:10.4]} 35... f5 {[%clk 0:01:02.1]} 36. Bh3 {[%clk 0:00:09.5]}
36... Rf7 {[%clk 0:00:58.8]} 37. Re2 {[%clk 0:00:09.2]} 37... Kh8 {[%clk
0:00:57.3]} 38. Rg2 {[%clk 0:00:09]} 38... Rdd7 {[%clk 0:00:42.4]} 39. Kh1
{[%clk 0:00:09.2]} 39... Qd5 {[%clk 0:00:29.5]} 40. Rg1 {[%clk 0:00:04]} 40...
Rg7 {[%clk 0:00:26.9]} 0-1